Cogmind - Beta 13 @@@ ROGUE MODE // 2024.06.27 @ 08:06:55 Player: RAT Result: Destroyed by as-57594 with Assembled Heavy Rifle Performance ------------- Evolutions (0) 0 Regions Visited (4) 800 Robots Destroyed (4) 20 Value Destroyed (88) 88 Prototype IDs (0) 0 Alien Tech Used (0) 0 Bonus (0) 0 TOTAL SCORE: 908 Bonus ------- None Cogmind --------- Core Integrity 0/250 Matter 295/300 Energy 100/100 System Corruption 3% Temperature Cool (0) Movement Core (350) Ox6 Location -9/Mines Parts ------- > --- POWER (1) -------- (None) > --- PROPULSION (2) --- (None) > --- UTILITY (2) ------ Large Storage Unit > --- WEAPON (2) ------- (None) > --- INVENTORY (15) --- Heat Sink Compact Matter Pod (150) Makeshift System Restoration Module Small Laser Small Laser EMP Trap Peak State ------------ > --- POWER ------------ Light Ion Engine > --- PROPULSION ------- Wheel Compact Wheel > --- UTILITY ---------- Small Storage Unit ECM Suite > --- WEAPON ----------- Light Assault Rifle Rocket Launcher > --- INVENTORY -------- Heat Sink Small Laser Small Laser [Rating: 8] Favorites ----------- Power Light Ion Engine Engine Light Ion Engine Propulsion Wheel Wheel Wheel Utility ECM Suite Device ECM Suite Storage Small Storage Unit Weapon Light Assault Rifle Energy Gun Small Laser Ballistic Gun Light Assault Rifle Launcher Rocket Launcher Special Weapon Mining Laser Build | -11 -10 -10 -10 -9 ------- Run | Yrd Mat Min Exi Min Slots Evolved . | . . . . . Power . | . . . . . Propulsion . | . . . . . Utility . | . . . . . Weapon . | . . . . . Parts Attached 11 | 6 2 2 1 . Power 1 | 1 . . . . Engine 1 | 1 . . . . Core . | . . . . . Reactor . | . . . . . Propulsion 2 | 2 . . . . Treads . | . . . . . Leg . | . . . . . Wheel 2 | 2 . . . . Hover . | . . . . . Flight . | . . . . . Utility 3 | 1 1 . 1 . Device 1 | . 1 . . . Storage 2 | 1 . . 1 . Processor . | . . . . . Hackware . | . . . . . Protection . | . . . . . Artifact . | . . . . . Weapon 5 | 2 1 2 . . Energy Gun 2 | 2 . . . . Energy Cannon . | . . . . . Ballistic Gun 1 | . 1 . . . Ballistic Cannon . | . . . . . Launcher 1 | . . 1 . . Special Weapon 1 | . . 1 . . Impact Weapon . | . . . . . Slashing Weapon . | . . . . . Piercing Weapon . | . . . . . Special Melee Weapon . | . . . . . Unidentified Prototypes . | . . . . . Parts Lost 8 | . 1 2 . 5 Power 1 | . . . . 1 Propulsion 2 | . . 1 . 1 Utility 1 | . . . . 1 Weapon 4 | . 1 1 . 2 Highest Loss Streak 5 | . 1 2 . 5 To Critical Strikes . | . . . . . Average Slot Usage (%) 84 | . 96 86 85 67 Engine 13 | . 14 14 14 11 Wheel 16 | . 28 18 14 9 Device 13 | . 12 14 14 11 Storage 14 | . 14 14 14 14 Energy Gun 3 | . 23 . . . Ballistic Gun 12 | . 3 14 14 10 Launcher 1 | . . 4 . . Special Weapon 8 | . . 7 14 9 Naked Turns . | . . . . . Heaviest Build 27 | 11 13 15 27 27 Greatest Support 26 | 26 26 26 10 10 Greatest Overweight (x) 8 | . . 1 2 8 Average Overweight (x) 1 | . . . 1 2 Largest Inventory Capacity 15 | 8 8 8 15 15 Average Capacity 10 | 6 8 8 11 15 Most Carried 8 | 2 3 7 8 6 Average Carried 4 | . 1 5 6 6 Final Capacity 15 | 8 8 8 15 15 Final Carried 6 | . 2 6 6 6 Class Distribution -------------------- 100% | Mutant Dominant Class ---------------- Mutant | -10/Materials Mutant | -10/Mines Mutant | -10/Exiles Mutant | -9/Mines Resources | -11 -10 -10 -10 -9 ----------- Run | Yrd Mat Min Exi Min Matter Collected 301 | 210 55 36 . . Remotely . | . . . . . Salvage Created 102 | . 82 20 . . Parts 8 | . 4 4 . . Haulers Intercepted . | . . . . . Recyclers Shooed . | . . . . . Parts Field Recycled . | . . . . . Retrieved Matter . | . . . . . Parts Self-Destructed . | . . . . . Prevented . | . . . . . Kills | -11 -10 -10 -10 -9 ------- Run | Yrd Mat Min Exi Min Combat Hostiles Destroyed 4 | . 2 2 . . Guns 3 | . 2 1 . . AOE 1 | . . 1 . . Classes Destroyed 2 | . 1 1 . . Swarmer 2 | . . 2 . . Grunt 2 | . 2 . . . Best Kill Streak 2 | . 2 2 . . Combat Bots Only 2 | . 2 2 . . Max Kills in Single Turn 1 | . 1 1 . . Gunslinging . | . . . . . Exploded 1 | . . 1 . . Melee . | . . . . . Uniques/NPCs Destroyed . | . . . . . Combat | -11 -10 -10 -10 -9 -------- Run | Yrd Mat Min Exi Min Hostile Shots Fired 93 | . 29 15 . 49 Missed 25 | . 8 3 . 14 Damage Taken 989 | . 231 138 . 620 Core 258 | . 66 18 . 174 Absorbed by Shields . | . . . . . Core Remaining (%) 100 | 100 . . . . Volleys Fired 27 | . 16 5 . 6 Largest 2 | . 2 2 . 2 Hottest 120 | . 80 53 . 120 Shots Fired 38 | . 25 6 . 7 Gun 33 | . 25 5 . 3 Cannon . | . . . . . Launcher 1 | . . 1 . . Special 4 | . . . . 4 Kinetic 8 | . . 5 . 3 Thermal 20 | . 16 . . 4 Explosive 1 | . . 1 . . Electromagnetic 9 | . 9 . . . Robot Hit Streak 8 | . 8 2 . . Robot Miss Streak 2 | . 1 2 . . Penetration Max . | . . . . . Secondary Targets . | . . . . . Shots Hit Robots 17 | . 14 3 . . Core Hits 7 | . 5 2 . . Critical Kills . | . . . . . Critical Parts Destroyed . | . . . . . Critical Strikes . | . . . . . Melee Attacks . | . . . . . Impact . | . . . . . Slashing . | . . . . . Piercing . | . . . . . Sneak Attacks . | . . . . . Combat Hostiles . | . . . . . Follow-up Attacks . | . . . . . Damage Inflicted 322 | . 184 132 . 6 Guns 201 | . 184 17 . . Cannons . | . . . . . Explosions 115 | . . 115 . . Melee . | . . . . . Ramming 6 | . . . . 6 Kinetic 17 | . . 17 . . Thermal 102 | . 102 . . . Explosive 115 | . . 115 . . Electromagnetic 82 | . 82 . . . Impact . | . . . . . Slashing . | . . . . . Piercing . | . . . . . Highest Corruption 3 | . . . . 3 Average Corruption 3 | . . . . 3 Corruption Purged . | . . . . . Corruption Blocked . | . . . . . Effects 1 | . . . . 1 Matter Fused 1 | . . . . 1 Overload Shots . | . . . . . Overflow Damage 7 | . . 7 . . Projectiles . | . . . . . Explosions 7 | . . 7 . . Melee . | . . . . . Knockbacks . | . . . . . Impact . | . . . . . Kinetic . | . . . . . Secondary . | . . . . . Self-Inflicted Damage 50 | . . 47 . 3 Shots 1 | . . 1 . . Rammed 1 | . . . . 1 Targets Rammed 1 | . . . . 1 Kicked . | . . . . . Crushed . | . . . . . Highest Temperature 172 | . 172 12 . 40 Average Temperature 64 | . 81 9 . 15 Received Heat Transfer 126 | . 126 . . . Siege Activations . | . . . . . Robots Corrupted . | . . . . . Combat Hostiles . | . . . . . Parts Fried . | . . . . . Impact Corruptions . | . . . . . Robots Melted . | . . . . . Combat Hostiles . | . . . . . Parts Melted 1 | . 1 . . . Heat Transferred 225 | . 225 . . . Parts Sabotaged . | . . . . . Parts Stolen . | . . . . . Parts Stripped . | . . . . . Power Chain Reactions . | . . . . . Alert | -11 -10 -10 -10 -9 ------- Run | Yrd Mat Min Exi Min Peak Influence 61 | . 60 61 . . Initial 23 | . . 23 . . Average 18 | . 17 26 . . Maximum Alert Level . | . . . . . Low Security (%) 100 | 100 100 100 . 100 Level 1 . | . . . . . Level 2 . | . . . . . Level 3 . | . . . . . Level 4 . | . . . . . Level 5 . | . . . . . High Security . | . . . . . Max Security . | . . . . . Squads Dispatched . | . . . . . Investigation . | . . . . . Extermination . | . . . . . Reinforcement . | . . . . . Assault . | . . . . . Garrison . | . . . . . Intercept . | . . . . . Searches Triggered . | . . . . . Construction Impeded . | . . . . . Haulers Reinforced . | . . . . . Active Scanning Responses . | . . . . . Cargo Convoy Interrupts . | . . . . . Stealth | -11 -10 -10 -10 -9 --------- Run | Yrd Mat Min Exi Min Distress Signals 1 | . 1 . . . Communications Jammed . | . . . . . Distress Signals . | . . . . . Times Spotted 15 | . 7 5 . 3 Peak Tracking Total 3 | . 3 3 . 3 Tactical Retreats 3 | . 2 1 . . Traps | -11 -10 -10 -10 -9 ------- Run | Yrd Mat Min Exi Min Traps Triggered . | . . . . . Indirectly . | . . . . . Trap Hack Attempts . | . . . . . Triggered . | . . . . . Disarmed . | . . . . . Reprogrammed . | . . . . . Reused . | . . . . . Traps Extracted . | . . . . . Installed . | . . . . . Triggered . | . . . . . Most Traps Carried 1 | . . 1 1 1 Machines | -11 -10 -10 -10 -9 ---------- Run | Yrd Mat Min Exi Min Machines Disabled . | . . . . . Max in Single Turn . | . . . . . Machines Repaired . | . . . . . Machines Dismantled . | . . . . . Machines Sabotaged . | . . . . . Overloaded Fab Kills . | . . . . . Hacking | -11 -10 -10 -10 -9 --------- Run | Yrd Mat Min Exi Min Machines Accessed 5 | . 1 . 4 . Terminals 1 | . 1 . . . Fabricators . | . . . . . Repair Stations . | . . . . . Recycling Units . | . . . . . Scanalyzers . | . . . . . Garrison Access . | . . . . . Total Hacks 6 | . 1 . 5 . Successful 5 | . . . 5 . Failed 1 | . 1 . . . Catastrophic . | . . . . . Database Lockouts . | . . . . . Manual 2 | . . . 2 . Terminals 1 | . 1 . . . Fabricators . | . . . . . Repair Stations . | . . . . . Recycling Units . | . . . . . Scanalyzers . | . . . . . Garrison Access . | . . . . . Terminal Hacks 5 | . . . 5 . Record 5 | . . . 5 . Fabricator Hacks . | . . . . . Repair Station Hacks . | . . . . . Recycling Unit Hacks . | . . . . . Scanalyzer . | . . . . . Garrison Access Hacks . | . . . . . Unauthorized Hacks . | . . . . . Terminals . | . . . . . Fabricators . | . . . . . Repair Stations . | . . . . . Recycling Units . | . . . . . Scanalyzers . | . . . . . Garrison Access . | . . . . . Data Cores Recovered . | . . . . . Used . | . . . . . Hacking Detections . | . . . . . Full Trace Events . | . . . . . Feedback Events . | . . . . . Feedback Blocked . | . . . . . Robot Schematics Acquired . | . . . . . Robots Built . | . . . . . Authchips . | . . . . . Time . | . . . . . Total Robot Build Rating . | . . . . . Part Schematics Acquired . | . . . . . Parts Built . | . . . . . Authchips . | . . . . . Time . | . . . . . Total Part Build Rating . | . . . . . Parts Repaired . | . . . . . Time . | . . . . . Parts Recycled . | . . . . . Recycled Matter . | . . . . . Retrieved Matter . | . . . . . Retrieved Components . | . . . . . Parts Scanalyzed . | . . . . . Part Schematics Acquired . | . . . . . Parts Damaged . | . . . . . Bothacking | -11 -10 -10 -10 -9 ------------ Run | Yrd Mat Min Exi Min Used RIF Installer . | . . . . . Robots Hacked . | . . . . . Non-combat . | . . . . . Combat . | . . . . . Robot Hacks Applied . | . . . . . Relay Couplers Released . | . . . . . Fabnet Peak Effective % . | . . . . . Robots Rewired . | . . . . . Allies Hacked . | . . . . . Hacks Repelled . | . . . . . Allies | -11 -10 -10 -10 -9 -------- Run | Yrd Mat Min Exi Min Total Allies 1 | . . 1 . . Largest Group 1 | . . 1 . . Highest-Rated Group 31 | . . 31 . . Highest-Rated Ally 31 | . . 31 . . Total Orders . | . . . . . Ally Attacks . | . . . . . Total Damage . | . . . . . Kills . | . . . . . Allies Corrupted . | . . . . . Allies Melted . | . . . . . Intel | -11 -10 -10 -10 -9 ------- Run | Yrd Mat Min Exi Min Robot Analysis Total . | . . . . . Derelict Logs Recovered 1 | . . 1 . . Drone Launches . | . . . . . Drone Recoveries . | . . . . . Exploration | -11 -10 -10 -10 -9 ------------- Run | Yrd Mat Min Exi Min Turns Passed 1625 | 39 212 632 497 245 Spaces Moved 1485 | 34 179 633 479 160 Core 26 | 8 . . . 18 Treads . | . . . . . Legs . | . . . . . Wheels 1459 | 26 179 633 479 142 Hover . | . . . . . Flight . | . . . . . Fastest Speed 50 | 50 90 90 95 110 Average Speed 100 | 80 90 93 103 139 Slowest Speed 450 | 90 90 95 110 450 Overloaded Moves . | . . . . . Propulsion Burnouts . | . . . . . Robots Hopped . | . . . . . Cave-ins Triggered . | . . . . . Exploration Rate (%) 43 | 3 26 98 63 25 Regions Visited 4 Branch Regions 3 Pre-discovered Areas 2 | . . 1 1 . Known Exits Taken . | . . . . . Unknown Exits Taken 4 | 1 1 1 1 . Scrap Searched 1 | . . 1 . . Spaces Dug 2 | . . . . 2 Terrain Destroyed 12 | . . 8 . 4 Melee . | . . . . . Projectile 4 | . . . . 4 AOE 8 | . . 8 . . Terrain Rammed . | . . . . . Walls Destroyed . | . . . . . Machines Disabled . | . . . . . Actions | -11 -10 -10 -10 -9 --------- Run | Yrd Mat Min Exi Min Total 1567 | 45 204 668 483 167 Wait 27 | . 4 23 . . Move 1481 | 33 178 632 478 160 Hop . | . . . . . Pick Up 17 | 6 4 5 2 . Fast Attach . | . . . . . Attach 10 | 6 2 2 . . Detach 1 | . . 1 . . Swap 1 | . . . 1 . Drop 2 | . . . 2 . Fire 27 | . 16 5 . 6 Melee . | . . . . . Ram 1 | . . . . 1 Kick . | . . . . . Crush . | . . . . . Escape Stasis . | . . . . . Rewire . | . . . . . Trap . | . . . . . Miscellaneous . | . . . . . Route ------- -11/Scrapyard -10/Materials -10/Mines (discovered 3 exits: [*Mat x2] / *Exi) -10/Exiles -9/Mines History --------- Turn | Location | Event 29 | -11/Scrapyard | Discovered new exit (range 12) 40 | -11/Scrapyard | Entered Materials 243 | -10/Materials | Discovered new exit (range 11) 252 | -10/Materials | Entered Mines 259 | -10/Mines | Received a Rocket Launcher from a helpful Derelict 303 | -10/Mines | Build established: Mutant 348 | -10/Mines | Found a hidden stash of uninstalled traps 556 | -10/Mines | Received a Mining Laser from a helpful Derelict 666 | -10/Mines | Discovered new exit (range 8) 729 | -10/Mines | Deemed a non-threat by the Exiles lab entrance 729 | -10/Mines | Discovered new exit (range 5) 762 | -10/Mines | Discovered new exit (range 7) 884 | -10/Mines | Entered Exiles 884 | -10/Exiles | Found Exiles lab destroyed 1067 | -10/Exiles | Learned location of Zion (-7) 1121 | -10/Exiles | Discovered new exit (range 10) 1381 | -10/Exiles | Entered Mines 1382 | -9/Mines | Assembled infested the area 1387 | -9/Mines | Assisted by a Guerilla fighting off Assembled 1577 | -9/Mines | Core integrity fell below 50% 1611 | -9/Mines | Lost 5 parts (1p1n1u2w) 1619 | -9/Mines | Core integrity fell below 20% 1626 | -9/Mines | Destroyed by as-57594 with Assembled Heavy Rifle Last Messages --------------- 01478_ T-07 Excavator is excavating. Disabling or destroying stationary machines or terrain requires that a single hit meet or exceed the object's Armor value. Inspect machines by right-clicking on them, and walls via Ctrl-RMB (or as any other object in keyboard mode). Hovering the cursor over an object also shows its Armor in the Scan window. 01486_ T-07 Excavator is excavating. 01557_ Mining Laser destroyed. 01559_ Wheel destroyed. 01569_ Lgt. Assault Rifle destroyed. 01575_ Lgt. Ion Engine destroyed. 01580_ ECM Suite destroyed. 01580_ System corrupted by crushing effect (+3). 01580_ Knocked back. 01617_ System corrupted: Matter fused (-5). 01618_ Knocked back. [Achievement: Back For More] Map ----- +----------------------------------------------------+ | | | | | | | | | | | | | | | | | | | | | ???????????????????????????????????????? | | ???????????????????????????????????????? | | ???????????????????????????????????????? | | ???????????????????????????????????????? | | ?????????????????????????????#######???? | | ???????????????????????####?## #???? | | ??????????????????###### ### #???? | | ??????????????????# ##???? | | ??????????????????# #????? | | ??????????????????# ## ##????? | | ??????????????????# ### ####?????? | | ??????????????????# #?## ######????????? | | ??????????????????# #??# #?????????????? | | ??????????????????# #??#a#?????????????? | | ??????????????????# #??#a######????????? | | ??????????????????# #### @ #????????? | | ??????????????????# ###### ###??????? | | ??????????????????### #????# #??????? | | ????????????????????# #????### #??????? | | ????????????????????# #?????## #??????? | | ????????????????????# #???### ##?????? | | ????????????????????# #??## ##????? | | ????????????????????# ##?# #????? | | ????????????????????# ### #????? | | ????????????????????# ### ## #????? | | ????????????????????# #####?###????? | | ????????????????????## ##???????????? | | ?????????????????????# ##??????????? | | ??????? ???????????## ##?????????? | | ?????? #######?## #?????????? | | ?????? ## #?????????? | | ????? ##?????????? | | ?????? ###??????????? | | ???????? ##### ##????????????? | | ??????????????## ########??????? | | ???????????????# #??????? | | ??????????????# #??????? | | ?????????????# ## ####### #??????? | | ?????????????## #?## #?????# #??????? | | ??????????????###???# ?????# #??????? | +----------------------------------------------------+ Best States ------------- Heat Dissipation 25 Energy Generation 10 Energy Capacity 125 Matter Stores 300 Matter Capacity 300 Sight Range 16 Terrain Scan Density 10 ECM Strength 1 Evasion (%) 42 Item Schematics ----------------- None Robot Schematics ------------------ None Fabricated ------------ Nothing Alien Tech Used ----------------- None Achievements -------------- Back For More Challenges ------------ None Game ------ Seed AlphaStasisPropulsion Manual? 0 Play Time 00:18:03 Cumulative 11.7 hours Start 2024.06.27 @ 07:46:53 End 2024.06.27 @ 08:06:55 Sessions 1 Manual Loads 0 Difficulty Rogue Special Mode None Game No. 51 Rogue 51 Adventurer 0 Explorer 0 Win Type - Total 0 Types 0/0/0/0/0/0/0/0/0 Lore% 3 Gallery% 16 Achievement% 12 Wizard Run 0 Options --------- Layout 1 ASCII 0 Keyboard 0 Movement Mouse Keybinds 0 Fullscreen 1 Font 24/Smallcaps Map View 50x35 Zoom Use 0% Tactical HUD 1 Map Filters NONE Filters NONE Steam 1 RUN: 3aaaf5e9-1304-4999-8fd9-485820b1465b